Cogmind - Beta 11.1 --- EXPLORER MODE // 2022.05.30 @ 23:04:25 // Winter2019/RPGLIKE Player: Grimbling Result: Destroyed by MAIN.C with Heavy Quantum Rifle Performance ------------- Evolutions (9) 4500 Regions Visited (24) 4800 Robots Destroyed (61) 305 Value Destroyed (2330) 2330 Prototype IDs (63) 1260 Alien Tech Used (5) 1000 Bonus (15101) 15101 TOTAL SCORE: 29296 Bonus ------- Follower Combat Kills 1041 Met Zhirov 300 Met Warlord at Base 500 MAIN.C Attacked Warlord 500 Found Hidden Lab 3000 Hacked Protovariant 500 Scanned by Researcher 500 Pursued by Intercept 1000 Acquired SGEMP 2000 Delivered SGEMP 2000 Destroyed MAIN.C Guards 500 Met MAIN.C 5000 Met Warlord at Command 2000 Friendly Fire -3740 Cogmind --------- Core Integrity 0/1500 Matter 344/400 Energy 869/900 System Corruption 8% Temperature Cool (18) Movement Flying (14) Location -1/Command Parts ------- > --- POWER (2) -------- Vortex Chain Reactor > --- PROPULSION (6) --- Advanced Surge Thruster Q-thruster Electron Diverter Electron Diverter Experimental Q-thruster Experimental Q-thruster > --- UTILITY (10) ----- Advanced Signal Interpreter Improved Terrain Scanner Advanced Transmission Jammer Advanced ECM Suite Advanced Reaction Control System Makeshift Cloaking Device Advanced Thermal Shield Advanced Hacking Suite Advanced Hacking Suite System Mapper > --- WEAPON (2) ------- Hypervelocity EM Gauss Rifle Plasma Sword > --- INVENTORY (7) ---- Impulse Thruster Advanced Gravity Neutralizer Advanced Focal Shield Experimental Hardlight Generator Linear Accelerator Peak State ------------ > --- POWER ------------ Vortex Chain Reactor > --- PROPULSION ------- Advanced Surge Thruster Q-thruster Electron Diverter Electron Diverter Experimental Q-thruster Experimental Q-thruster > --- UTILITY ---------- Advanced Signal Interpreter Improved Terrain Scanner Advanced Transmission Jammer Advanced ECM Suite Advanced Reaction Control System Makeshift Cloaking Device Advanced Thermal Shield Advanced Hacking Suite Advanced Hacking Suite System Mapper > --- WEAPON ----------- Vortex Driver Plasma Sword > --- INVENTORY -------- Impulse Thruster Advanced Gravity Neutralizer Advanced Focal Shield Experimental Hardlight Generator Hypervelocity EM Gauss Rifle Linear Accelerator Improved Plasma Cutter [Rating: 153] Favorites ----------- Power Vortex Chain Reactor Engine Angular Momentum Engine Power Core Light Nuclear Core Reactor Vortex Chain Reactor Propulsion Xenon Bombardment Thruster Leg Aluminum Leg Flight Unit Xenon Bombardment Thruster Utility Improved Terrain Scanner Device Improved Terrain Scanner Processor Advanced Signal Interpreter Hackware Advanced Hacking Suite Protection Light Armor Plating Weapon Plasma Sword Energy Gun Hypervelocity EM Gauss Rifle Energy Cannon Vortex Driver Ballistic Gun Flak Gun Ballistic Cannon Light Cannon Launcher Concussive RPG Special Weapon Improved Plasma Cutter Impact Weapon Power Maul Slashing Weapon Plasma Sword Piercing Weapon Lance Build | -11 -10 -9 -8 -7 -6 -6 -5 -5 -5 -5 -4 -4 -4 -4 -4 -3 -3 -3 -3 -2 -2 -2 -1 -1 ------- Run | Scr Mat Mat Mat Fac Fac Ext Fac Upp Upp War Pro Fac Upp Upp Zhi Pro Res Arm Lab Res Tes Sec Acc Com Slots Evolved 16 | 3 . 2 2 3 . . . . . 1 1 . . . . 1 1 . 1 . 1 . . . Power 1 | . . . . 1 . . . . . . . . . . . . . . . . . . . . Propulsion 5 | 1 . 2 . 2 . . . . . . . . . . . . . . . . . . . . Utility 9 | 2 . . 2 . . . . . . 1 . . . . . 1 1 . 1 . 1 . . . Weapon 1 | . . . . . . . . . . . 1 . . . . . . . . . . . . . Parts Attached 145 | 7 4 3 13 2 4 8 13 . 1 13 . 9 . . 3 1 11 8 4 1 30 3 1 6 Power 11 | . 1 . 1 1 1 . 2 . . 1 . . . . 2 . . 2 . . . . . . Engine 4 | . . . 1 . 1 . 2 . . . . . . . . . . . . . . . . . Core 2 | . 1 . . 1 . . . . . . . . . . . . . . . . . . . . Reactor 5 | . . . . . . . . . . 1 . . . . 2 . . 2 . . . . . . Propulsion 39 | 2 1 1 4 . 2 . 2 . . 3 . 5 . . . . 5 4 . . 6 3 1 . Treads . | . . . . . . . . . . . . . . . . . . . . . . . . . Leg 4 | 2 1 1 . . . . . . . . . . . . . . . . . . . . . . Wheel . | . . . . . . . . . . . . . . . . . . . . . . . . . Hover . | . . . . . . . . . . . . . . . . . . . . . . . . . Flight 35 | . . . 4 . 2 . 2 . . 3 . 5 . . . . 5 4 . . 6 3 1 . Utility 54 | 3 1 . 6 1 1 2 4 . 1 7 . 3 . . 1 1 5 . 2 1 15 . . . Device 37 | 1 1 . 2 1 1 . 4 . 1 4 . 2 . . 1 . 4 . 1 1 13 . . . Storage . | . . . . . . . . . . . . . . . . . . . . . . . . . Processor 6 | 1 . . 1 . . 1 . . . 2 . 1 . . . . . . . . . . . . Hackware 6 | . . . 1 . . . . . . 1 . . . . . 1 1 . 1 . 1 . . . Protection 5 | 1 . . 2 . . 1 . . . . . . . . . . . . . . 1 . . . Artifact . | . . . . . . . . . . . . . . . . . . . . . . . . . Weapon 41 | 2 1 2 2 . . 6 5 . . 2 . 1 . . . . 1 2 2 . 9 . . 6 Energy Gun 2 | . . . . . . . . . . . . . . . . . . . . . 1 . . 1 Energy Cannon 3 | . . . . . . . . . . 1 . . . . . . . . . . . . . 2 Ballistic Gun 7 | 2 . 1 1 . . 3 . . . . . . . . . . . . . . . . . . Ballistic Cannon 9 | . 1 1 1 . . 2 . . . . . . . . . . . 1 . . 1 . . 2 Launcher 3 | . . . . . . 1 1 . . . . . . . . . . . . . 1 . . . Special Weapon 10 | . . . . . . . . . . . . 1 . . . . 1 1 2 . 4 . . 1 Impact Weapon 2 | . . . . . . . 2 . . . . . . . . . . . . . . . . . Slashing Weapon 4 | . . . . . . . 1 . . 1 . . . . . . . . . . 2 . . . Piercing Weapon 1 | . . . . . . . 1 . . . . . . . . . . . . . . . . . Special Melee Weapon . | . . . . . . . . . . . . . . . . . . . . . . . . . Unidentified Prototypes 35 | . . . . . . . 3 . 1 6 . 1 . . 2 . 3 2 5 . 11 1 . . Parts Lost 1 | . . . . . . . . . . . . . . . . . . . . . 1 . . . Power . | . . . . . . . . . . . . . . . . . . . . . . . . . Propulsion . | . . . . . . . . . . . . . . . . . . . . . . . . . Utility 1 | . . . . . . . . . . . . . . . . . . . . . 1 . . . Weapon . | . . . . . . . . . . . . . . . . . . . . . . . . . Highest Loss Streak 1 | . . . . . . . . . . . . . . . . . . . . . 1 . . . To Critical Strikes . | . . . . . . . . . . . . . . . . . . . . . . . . . Average Slot Usage (%) 94 | . 98 78 96 82 100 99 100 100 100 94 87 92 93 93 92 94 93 94 89 94 91 95 95 94 Engine 2 | . . . 4 7 7 7 13 14 14 4 . . . . . . . . . . . . . . Core 3 | . 12 11 4 2 7 7 . . . . . . . . . . . . . . . . . . Reactor 3 | . . . . . . . . . . 4 6 6 6 6 6 5 5 5 5 5 5 5 5 5 Leg 4 | . 27 23 2 . . . . . . . . . . . . . . . . . . . . . Flight 29 | . . . 33 28 42 42 42 42 42 40 37 36 37 37 37 35 32 33 31 31 28 30 30 30 Device 25 | . 14 11 15 16 21 21 27 28 28 32 31 31 31 31 30 29 26 27 26 26 30 30 30 30 Processor 6 | . 14 11 12 5 . 5 7 7 7 6 6 6 6 6 6 5 5 5 5 5 5 5 5 5 Hackware 4 | . . . 4 7 7 2 . . . . . . . . . 5 10 11 12 15 12 15 15 15 Protection 3 | . 14 11 9 7 7 7 . . . . . . . . . . . . . . . . . . Ballistic Gun 2 | . 8 2 5 7 7 5 . . . . . . . . . . . . . . . . . . Ballistic Cannon 1 | . 5 8 3 . . 1 . . . . . . . . . . . . . . . . . . Special Weapon 2 | . . . . . . . . . . . . 6 6 6 6 5 5 5 2 5 4 5 5 3 Slashing Weapon 3 | . . . . . . . . 7 7 6 6 6 6 6 6 5 5 5 5 5 4 5 5 5 Naked Turns . | . . . . . . . . . . . . . . . . . . . . . . . . . Heaviest Build 66 | 6 12 13 26 32 36 38 36 36 36 46 46 48 48 48 48 48 48 48 48 48 51 51 51 66 Greatest Support 67 | 30 30 40 40 34 46 51 51 51 51 55 55 58 58 58 58 58 58 59 51 51 67 58 60 60 Greatest Overweight (x) 2 | . . . . . . . . . . . . . 2 . . . . 2 . . 1 . . 1 Average Overweight (x) . | . . . . . . . . . . . . . . . . . . . . . . . . . Largest Inventory Capacity 7 | 3 3 3 3 3 5 5 5 5 5 5 5 5 5 5 5 5 5 5 6 6 6 6 7 7 Average Capacity 4 | 2 3 3 3 3 4 5 5 5 5 5 5 5 5 5 5 5 5 5 5 6 6 6 6 7 Most Carried 7 | 2 3 3 3 3 5 5 5 5 5 5 5 5 5 5 5 5 5 5 6 6 6 6 7 7 Average Carried 4 | . 2 3 2 2 3 4 4 5 5 4 5 4 5 5 4 4 4 5 5 6 5 6 6 6 Final Capacity 7 | 3 3 3 3 3 5 5 5 5 5 5 5 5 5 5 5 5 5 5 6 6 6 6 7 7 Final Carried 7 | 2 3 3 3 2 5 5 5 5 5 5 5 5 5 5 5 4 5 5 6 6 6 6 7 5 Class Distribution -------------------- 44% | Hacker-Ninja 18% | Hacker-Mutant 16% | Wizard-Ninja 15% | Hacker-Scout Dominant Class ---------------- Hacker-Mutant | -10/Materials Hacker-Mutant | -9/Materials Hacker-Scout | -8/Materials Hacker-Scout | -7/Factory Hacker-Scout | -6/Factory Hacker-Scout | -6/Extension Hacker-Ninja | -5/Factory Hacker-Ninja | -5/Upper Caves Hacker-Ninja | -5/Upper Caves Hacker-Ninja | -5/Warlord Hacker-Ninja | -4/Proximity Caves Hacker-Ninja | -4/Factory Hacker-Ninja | -4/Upper Caves Hacker-Ninja | -4/Upper Caves Hacker-Ninja | -4/Zhirov Hacker-Ninja | -3/Proximity Caves Hacker-Ninja | -3/Research Hacker-Ninja | -3/Armory Wizard-Ninja | -3/Lab Wizard-Ninja | -2/Research Hacker-Ninja | -2/Testing Wizard-Ninja | -2/Section 7 Wizard-Ninja | -1/Access Wizard-Ninja | -1/Command Resources | -11 -10 -9 -8 -7 -6 -6 -5 -5 -5 -5 -4 -4 -4 -4 -4 -3 -3 -3 -3 -2 -2 -2 -1 -1 ----------- Run | Scr Mat Mat Mat Fac Fac Ext Fac Upp Upp War Pro Fac Upp Upp Zhi Pro Res Arm Lab Res Tes Sec Acc Com Matter Collected 2285 | 260 225 164 96 54 50 337 50 80 20 116 . 94 10 . 56 24 110 54 . 120 215 120 10 20 Remotely . | . . . . . . . . . . . . . . . . . . . . . . . . . Salvage Created 4429 | . 231 70 22 50 . 56 141 201 . . . 824 61 . 120 . 195 95 . 34 258 333 . 1738 Parts 213 | . 23 9 . 3 . 5 6 10 . . . 34 3 . 14 . 9 11 . 2 10 5 . 69 Haulers Intercepted 11 | . 2 . . 1 . . 1 . . . . 3 . . . . 1 . . . . 3 . . Recyclers Shooed 3 | . 2 . . . . . . . . . . 1 . . . . . . . . . . . . Parts Field Recycled . | . . . . . . . . . . . . . . . . . . . . . . . . . Retrieved Matter . | . . . . . . . . . . . . . . . . . . . . . . . . . Parts Self-Destructed . | . . . . . . . . . . . . . . . . . . . . . . . . . Prevented . | . . . . . . . . . . . . . . . . . . . . . . . . . Kills | -11 -10 -9 -8 -7 -6 -6 -5 -5 -5 -5 -4 -4 -4 -4 -4 -3 -3 -3 -3 -2 -2 -2 -1 -1 ------- Run | Scr Mat Mat Mat Fac Fac Ext Fac Upp Upp War Pro Fac Upp Upp Zhi Pro Res Arm Lab Res Tes Sec Acc Com Combat Hostiles Destroyed 27 | . 9 7 1 . . 2 . 2 . . . . 1 . . . . . . . . . . 5 Melee 6 | . . . . . . . . 2 . . . . 1 . . . . . . . . . . 3 Guns 12 | . 8 1 1 . . 2 . . . . . . . . . . . . . . . . . . Cannons 9 | . 1 6 . . . . . . . . . . . . . . . . . . . . . 2 Classes Destroyed 13 | . 4 1 . . . 2 . 1 . . . 1 1 . . . 1 1 . . 1 . . . Worker 5 | . . . . . . 1 1 . . . . 1 . . . . 1 . . . 1 . . . Builder 1 | . . . . . . . . . . . . . . . . . 1 . . . . . . . Hauler 11 | . 2 . . 1 . . 1 . . . . 3 . . . . 1 . . . . 3 . . Recycler 2 | . . . . . . . . . . . . 1 . . . . . . . . 1 . . . Operator 1 | . . . . . . . . . . . . . . . . . . 1 . . . . . . Watcher 12 | . 1 . . . . . 2 . . . . 5 . . . . 1 2 . 1 . . . . Swarmer 8 | . 2 5 1 . . . . . . . . . . . . . . . . . . . . . Grunt 7 | . 7 . . . . . . . . . . . . . . . . . . . . . . . Researcher 1 | . . . . . . . . . . . . . . . . . . . . . 1 . . . Sentry 2 | . . 2 . . . . . . . . . . . . . . . . . . . . . . Hunter 2 | . . . . . . . . 2 . . . . . . . . . . . . . . . . Programmer 5 | . . . . . . 2 . . . . . . . . . . . . . . . . . 3 M Guard 1 | . . . . . . . . . . . . . . . . . . . . . . . . 1 Combat Programmer 1 | . . . . . . . . . . . . . . . . . . . . . . . . 1 Packrat 1 | . . . . . . . . . . . . . 1 . . . . . . . . . . . Mutant 1 | . . . . . . . . . . . . . 1 . . . . . . . . . . . Best Kill Streak 4 | . 4 2 1 1 . 1 1 2 . . . 3 1 . . . 2 1 . 1 1 2 . 3 Combat Bots Only 4 | . 4 2 1 . . 1 . 2 . . . . 1 . . . . . . . . . . 3 Max Kills in Single Turn 1 | . 1 1 1 1 . 1 1 1 . . . 1 1 . . . 1 1 . 1 1 1 . 1 Gunslinging . | . . . . . . . . . . . . . . . . . . . . . . . . . Exploded . | . . . . . . . . . . . . . . . . . . . . . . . . . Melee 1 | . . . . . . . . 1 . . . . 1 . . . . . . . . . . 1 Uniques/NPCs Destroyed 1 | . . . . . . 1 . . . . . . . . . . . . . . . . . . A7 (-6/Extension) Combat | -11 -10 -9 -8 -7 -6 -6 -5 -5 -5 -5 -4 -4 -4 -4 -4 -3 -3 -3 -3 -2 -2 -2 -1 -1 -------- Run | Scr Mat Mat Mat Fac Fac Ext Fac Upp Upp War Pro Fac Upp Upp Zhi Pro Res Arm Lab Res Tes Sec Acc Com Damage Taken 3876 | . 200 193 64 . 21 220 185 105 . . 13 100 22 . . 186 . 61 . 55 490 . 77 1884 Core 3071 | . 147 126 44 . 12 147 154 84 . . 9 90 18 . . 152 . 51 . 43 399 . 59 1536 Absorbed by Shields 116 | . . . 63 . . 53 . . . . . . . . . . . . . . . . . . Redirected to Core 2388 | . 90 100 25 . 12 110 113 74 . . 9 29 10 . . 116 . 34 . 43 322 . 59 1242 Regen/Repaired (Parts) 107 | . . . . . . . 64 . . . . . . . . . . . . . 43 . . . Core Remaining (%) 90 | 100 100 93 87 90 . 100 . . . . 98 . . . . 84 . . 94 . . 56 . . Volleys Fired 235 | . 62 31 1 3 2 28 . . . . . 8 . . 26 . . . . . 2 . . 72 Largest 1 | . 1 1 1 1 1 1 . . . . . 1 . . 1 . . . . . 1 . . 1 Hottest 100 | . 35 39 25 25 25 53 . . . . . 20 . . 20 . . . . . 40 . . 100 Shots Fired 235 | . 62 31 1 3 2 28 . . . . . 8 . . 26 . . . . . 2 . . 72 Gun 103 | . 48 6 1 3 2 22 . . . . . . . . . . . . . . 2 . . 19 Cannon 74 | . 14 25 . . . 5 . . . . . . . . . . . . . . . . . 30 Launcher 1 | . . . . . . 1 . . . . . . . . . . . . . . . . . . Special 57 | . . . . . . . . . . . . 8 . . 26 . . . . . . . . 23 Kinetic 128 | . 62 31 1 3 2 27 . . . . . . . . . . . . . . . . . 2 Thermal 57 | . . . . . . . . . . . . 8 . . 26 . . . . . . . . 23 Explosive 1 | . . . . . . 1 . . . . . . . . . . . . . . . . . . Electromagnetic 21 | . . . . . . . . . . . . . . . . . . . . . 2 . . 19 Entropic 28 | . . . . . . . . . . . . . . . . . . . . . . . . 28 Robot Hit Streak 46 | . 23 20 15 5 6 11 . . . . . 12 . . 38 . . . . . 40 . . 46 Robot Miss Streak 3 | . 2 2 . 1 1 3 . . . . . . . . . . . . . . . . . 1 Penetration Max 1 | . . . . . . . . . . . . . . . . . . . . . . . . 1 Secondary Targets . | . . . . . . . . . . . . . . . . . . . . . . . . . Shots Hit Robots 333 | . 55 28 1 3 2 24 4 8 . . . 26 7 . 26 1 9 6 . 2 7 3 . 121 Core Hits 134 | . 22 11 1 1 1 29 2 4 . . . 11 2 . 4 1 3 3 . 1 3 3 . 32 Critical Kills 1 | . . . . . . . 1 . . . . . . . . . . . . . . . . . Critical Parts Destroyed 1 | . . . . . . . 1 . . . . . . . . . . . . . . . . . Critical Strikes 18 | . 1 . . . . . 2 1 . . . 2 1 . . . 1 1 . . . . . 9 Blast 1 | . 1 . . . . . . . . . . . . . . . . . . . . . . . Smash 2 | . . . . . . . 2 . . . . . . . . . . . . . . . . . Sever 8 | . . . . . . . . 1 . . . 2 1 . . . 1 1 . . . . . 2 Sunder 5 | . . . . . . . . . . . . . . . . . . . . . . . . 5 Melee Attacks 191 | . . . . . . . 7 8 1 3 . 26 9 . . 1 15 8 3 3 20 3 5 79 Impact 7 | . . . . . . . 7 . . . . . . . . . . . . . . . . . Slashing 184 | . . . . . . . . 8 1 3 . 26 9 . . 1 15 8 3 3 20 3 5 79 Piercing . | . . . . . . . . . . . . . . . . . . . . . . . . . Sneak Attacks 19 | . . . . . . . 2 . . . . 6 1 . . . 3 1 . . 3 3 . . Combat Hostiles . | . . . . . . . . . . . . . . . . . . . . . . . . . Follow-up Attacks . | . . . . . . . . . . . . . . . . . . . . . . . . . Damage Inflicted 14954 | 2 755 594 31 67 29 628 310 532 . . . 1368 427 . 498 33 648 336 . 117 471 273 . 7835 Guns 1310 | . 554 123 31 67 29 504 . . . . . . . . . . . . . . 2 . . . Cannons 1951 | . 193 471 . . . 80 . . . . . . . . . . . . . . . . . 1207 Explosions 44 | . . . . . . 44 . . . . . . . . . . . . . . . . . . Melee 10643 | . . . . . . . 310 532 . . . 1235 427 . . 33 648 336 . 117 469 273 . 6263 Ramming 10 | 2 8 . . . . . . . . . . . . . . . . . . . . . . . Kinetic 2052 | . 747 594 31 67 29 584 . . . . . . . . . . . . . . . . . . Thermal 996 | . . . . . . . . . . . . 133 . . 498 . . . . . . . . 365 Explosive 44 | . . . . . . 44 . . . . . . . . . . . . . . . . . . Electromagnetic 2 | . . . . . . . . . . . . . . . . . . . . . 2 . . . Impact 310 | . . . . . . . 310 . . . . . . . . . . . . . . . . . Slashing 10333 | . . . . . . . . 532 . . . 1235 427 . . 33 648 336 . 117 469 273 . 6263 Piercing . | . . . . . . . . . . . . . . . . . . . . . . . . . Entropic 1207 | . . . . . . . . . . . . . . . . . . . . . . . . 1207 Highest Corruption 8 | . . . . . . 1 . . . . . . 1 1 1 1 1 1 1 . 1 1 . 8 Average Corruption 1 | . . . . . . 1 . . . . . . 1 1 1 1 1 1 1 . 1 1 . 4 Corruption Purged . | . . . . . . . . . . . . . . . . . . . . . . . . . Corruption Blocked 60 | . . . . . . . . . . . . . . . . . . . . . 20 . . 40 Effects 11 | . . . . . . 1 . . . . . . . 1 3 1 1 2 . . . . . 2 Message Errors 2 | . . . . . . . . . . . . . . . . . 1 . . . . . . 1 Matter Fused 6 | . . . . . . . . . . . . . . . 3 1 . 2 . . . . . . Heat Flow Errors 1 | . . . . . . . . . . . . . . . . . . . . . . . . 1 Energy Discharges 1 | . . . . . . . . . . . . . . 1 . . . . . . . . . . Data Loss (minor) 1 | . . . . . . 1 . . . . . . . . . . . . . . . . . . Overload Shots . | . . . . . . . . . . . . . . . . . . . . . . . . . Overflow Damage 936 | . 7 5 . . . . 94 61 . . . 178 125 . 24 . 144 . . 16 124 . . 158 Projectiles 54 | . 7 5 . . . . . . . . . 18 . . 24 . . . . . . . . . Explosions . | . . . . . . . . . . . . . . . . . . . . . . . . . Melee 882 | . . . . . . . 94 61 . . . 160 125 . . . 144 . . 16 124 . . 158 Knockbacks 15 | . 5 8 . . . . 2 . . . . . . . . . . . . . . . . . Impact 2 | . . . . . . . 2 . . . . . . . . . . . . . . . . . Kinetic 11 | . 4 7 . . . . . . . . . . . . . . . . . . . . . . Secondary 2 | . 1 1 . . . . . . . . . . . . . . . . . . . . . . Self-Inflicted Damage . | . . . . . . . . . . . . . . . . . . . . . . . . . Shots . | . . . . . . . . . . . . . . . . . . . . . . . . . Rammed . | . . . . . . . . . . . . . . . . . . . . . . . . . Targets Rammed 3 | 2 1 . . . . . . . . . . . . . . . . . . . . . . . Kicked 3 | 2 1 . . . . . . . . . . . . . . . . . . . . . . . Crushed . | . . . . . . . . . . . . . . . . . . . . . . . . . Highest Temperature 395 | . 24 107 . . . . . . . . . . . . . . 395 . . . . . . 80 Average Temperature 32 | . 6 34 . . . . . . . . . . . . . . 195 . . . . . . 80 Received Heat Transfer 947 | . 180 45 13 . 18 55 27 27 . . . 66 120 . . 99 . 9 . 9 . . . 279 Siege Activations . | . . . . . . . . . . . . . . . . . . . . . . . . . Robots Corrupted . | . . . . . . . . . . . . . . . . . . . . . . . . . Combat Hostiles . | . . . . . . . . . . . . . . . . . . . . . . . . . Parts Fried 2 | . . . . . . . 2 . . . . . . . . . . . . . . . . . Impact Corruptions 5 | . . . . . . . 5 . . . . . . . . . . . . . . . . . Robots Melted . | . . . . . . . . . . . . . . . . . . . . . . . . . Combat Hostiles . | . . . . . . . . . . . . . . . . . . . . . . . . . Parts Melted 1 | . . . . . . . . . . . . . . . . . . . . . . . . 1 Heat Transferred 1456 | . . . . . . . . . . . . 296 . . 962 . . . . . . . . 198 Parts Sabotaged . | . . . . . . . . . . . . . . . . . . . . . . . . . Parts Stolen . | . . . . . . . . . . . . . . . . . . . . . . . . . Parts Stripped . | . . . . . . . . . . . . . . . . . . . . . . . . . Power Chain Reactions . | . . . . . . . . . . . . . . . . . . . . . . . . . Missiles Intercepted . | . . . . . . . . . . . . . . . . . . . . . . . . . Alert | -11 -10 -9 -8 -7 -6 -6 -5 -5 -5 -5 -4 -4 -4 -4 -4 -3 -3 -3 -3 -2 -2 -2 -1 -1 ------- Run | Scr Mat Mat Mat Fac Fac Ext Fac Upp Upp War Pro Fac Upp Upp Zhi Pro Res Arm Lab Res Tes Sec Acc Com Peak Influence 424 | . 189 283 135 104 62 292 320 . . . . 287 . . . . 114 243 . 133 293 145 117 424 Initial 123 | . . 17 4 44 37 12 81 . . . . . . . . . 39 44 . . 15 123 17 36 Average 112 | . 76 113 25 58 37 145 167 . . . . 79 . . . . 79 160 . 60 52 32 42 224 Maximum Alert Level 2 | . . 1 . . . 1 1 . . . . 1 . . . . . 1 . . 1 . . 2 Low Security (%) 81 | 100 100 73 100 100 100 68 65 . . . . 95 . . . . 100 51 . 100 93 100 100 55 Level 1 17 | . . 26 . . . 31 34 . . . . 4 . . . . . 48 . . 6 . . 42 Level 2 . | . . . . . . . . . . . . . . . . . . . . . . . . 2 Level 3 . | . . . . . . . . . . . . . . . . . . . . . . . . . Level 4 . | . . . . . . . . . . . . . . . . . . . . . . . . . Level 5 . | . . . . . . . . . . . . . . . . . . . . . . . . . High Security . | . . . . . . . . . . . . . . . . . . . . . . . . . Max Security . | . . . . . . . . . . . . . . . . . . . . . . . . . Squads Dispatched 23 | . 1 1 . . . 2 . . . . . 4 . . . 1 . 1 . . 8 . 2 3 Investigation 8 | . 1 . . . . 2 . . . . . 3 . . . . . . . . . . 1 1 Extermination 3 | . . . . . . . . . . . . . . . . . . 1 . . 1 . . 1 Reinforcement 6 | . . 1 . . . . . . . . . 1 . . . . . . . . 3 . . 1 Assault 2 | . . . . . . . . . . . . . . . . 1 . . . . 1 . . . Garrison . | . . . . . . . . . . . . . . . . . . . . . . . . . Intercept 4 | . . . . . . . . . . . . . . . . . . . . . 3 . 1 . Searches Triggered . | . . . . . . . . . . . . . . . . . . . . . . . . . Construction Impeded . | . . . . . . . . . . . . . . . . . . . . . . . . . Haulers Reinforced . | . . . . . . . . . . . . . . . . . . . . . . . . . Active Scanning Responses . | . . . . . . . . . . . . . . . . . . . . . . . . . Cargo Convoy Interrupts . | . . . . . . . . . . . . . . . . . . . . . . . . . Stealth | -11 -10 -9 -8 -7 -6 -6 -5 -5 -5 -5 -4 -4 -4 -4 -4 -3 -3 -3 -3 -2 -2 -2 -1 -1 --------- Run | Scr Mat Mat Mat Fac Fac Ext Fac Upp Upp War Pro Fac Upp Upp Zhi Pro Res Arm Lab Res Tes Sec Acc Com Distress Signals 8 | . . 1 . . . 4 1 . . . . . . . . . . . . . . . 1 1 Communications Jammed 62 | . . . . . . 7 . . . 1 . 4 . . . 17 . 11 . 4 5 1 7 5 Distress Signals 58 | . . . . . . 7 . . . 1 . 3 . . . 17 . 11 . 4 2 1 7 5 Times Spotted 224 | . 16 19 13 . 2 24 13 8 . 4 3 20 1 . . 17 1 14 . 6 22 2 11 28 Peak Tracking Total 11 | . 3 8 11 . 2 6 5 3 . 2 3 4 1 . . 7 1 5 . 3 9 2 7 8 Tactical Retreats 38 | . 1 3 1 . . 6 4 3 . . . 7 . . . 3 . . . . 4 1 3 2 Traps | -11 -10 -9 -8 -7 -6 -6 -5 -5 -5 -5 -4 -4 -4 -4 -4 -3 -3 -3 -3 -2 -2 -2 -1 -1 ------- Run | Scr Mat Mat Mat Fac Fac Ext Fac Upp Upp War Pro Fac Upp Upp Zhi Pro Res Arm Lab Res Tes Sec Acc Com Traps Triggered 10 | . 1 . 1 . . . 2 . . . . 1 . . . . 3 1 . . 1 . . . Indirectly . | . . . . . . . . . . . . . . . . . . . . . . . . . Trap Hack Attempts . | . . . . . . . . . . . . . . . . . . . . . . . . . Triggered . | . . . . . . . . . . . . . . . . . . . . . . . . . Disarmed 8 | . . 6 . . . . . . . . . . . . . . . 2 . . . . . . Reprogrammed 17 | . . . 6 . . 11 . . . . . . . . . . . . . . . . . . Reused 2 | . . . 1 . . 1 . . . . . . . . . . . . . . . . . . Traps Extracted . | . . . . . . . . . . . . . . . . . . . . . . . . . Installed . | . . . . . . . . . . . . . . . . . . . . . . . . . Triggered 18 | . . . 1 . . 1 . . . 14 . . . . . . . . . . . . . 2 Machines | -11 -10 -9 -8 -7 -6 -6 -5 -5 -5 -5 -4 -4 -4 -4 -4 -3 -3 -3 -3 -2 -2 -2 -1 -1 ---------- Run | Scr Mat Mat Mat Fac Fac Ext Fac Upp Upp War Pro Fac Upp Upp Zhi Pro Res Arm Lab Res Tes Sec Acc Com Machines Disabled 18 | . . . . . . 3 1 . 1 1 . . 1 . . . . 3 1 . 6 . . 1 Max in Single Turn 1 | . . . . . . 1 1 . 1 1 . . 1 . . . . 1 1 . 1 . . 1 Garrison Access 9 | . . . 1 . 1 . . . . . . 2 . . . . 1 . . . 1 . 3 . Machines Sabotaged . | . . . . . . . . . . . . . . . . . . . . . . . . . Garrisons Compromised . | . . . . . . . . . . . . . . . . . . . . . . . . . Overloaded Fab Kills . | . . . . . . . . . . . . . . . . . . . . . . . . . Hacking | -11 -10 -9 -8 -7 -6 -6 -5 -5 -5 -5 -4 -4 -4 -4 -4 -3 -3 -3 -3 -2 -2 -2 -1 -1 --------- Run | Scr Mat Mat Mat Fac Fac Ext Fac Upp Upp War Pro Fac Upp Upp Zhi Pro Res Arm Lab Res Tes Sec Acc Com Machines Accessed 106 | . 7 3 7 1 3 9 5 . 1 7 . 16 . . 4 . 2 3 2 4 7 4 14 7 Terminals 74 | . 7 3 5 1 2 9 4 . . . . 11 . . . . 1 3 . 3 5 4 9 7 Fabricators 2 | . . . . . . . . . . . . 1 . . . . . . . . . . 1 . Repair Stations 2 | . . . . . . . 1 . . . . . . . . . . . . . 1 . . . Recycling Units 2 | . . . . . . . . . . . . 2 . . . . . . . . . . . . Scanalyzers 3 | . . . 1 . . . . . . . . . . . . . . . . 1 . . 1 . Garrison Access 9 | . . . 1 . 1 . . . . . . 2 . . . . 1 . . . 1 . 3 . Total Hacks 314 | . 26 14 16 4 12 19 16 . 1 17 . 41 . . 17 . 3 8 20 18 34 9 24 15 Successful 241 | . 15 9 14 1 6 14 9 . 1 17 . 24 . . 17 . 3 8 20 12 29 7 22 13 Failed 73 | . 11 5 2 3 6 5 7 . . . . 17 . . . . . . . 6 5 2 2 2 Catastrophic 5 | . 1 . . . . . . . . . . 2 . . . . . . . . 1 1 . . Database Lockouts . | . . . . . . . . . . . . . . . . . . . . . . . . . Manual 173 | . 18 8 11 2 7 7 10 . . . . 28 . . . . 2 5 1 14 26 9 14 11 Terminals 230 | . 26 14 13 4 11 19 13 . . . . 33 . . . . 2 8 . 16 29 9 18 15 Fabricators 4 | . . . . . . . . . . . . 2 . . . . . . . . . . 2 . Repair Stations 7 | . . . . . . . 3 . . . . . . . . . . . . . 4 . . . Recycling Units 3 | . . . . . . . . . . . . 3 . . . . . . . . . . . . Scanalyzers 5 | . . . 2 . . . . . . . . . . . . . . . . 2 . . 1 . Garrison Access 10 | . . . 1 . 1 . . . . . . 3 . . . . 1 . . . 1 . 3 . Terminal Hacks 148 | . 11 5 5 . 3 10 3 . 1 17 . 7 . . 17 . 1 6 20 7 16 4 8 7 Record 41 | . . . . . . . . . 1 15 . . . . 5 . . . 20 . . . . . Part Schematic 16 | . . . . . . . . . . . . . . . 4 . . . . 1 11 . . . Robot Analysis 6 | . 1 . . . 1 . . . . . . . . . 4 . . . . . . . . . Prototype ID Bank 17 | . 4 2 1 . . 1 . . . . . 1 . . 4 . . 1 . 1 . . 2 . Open Door 12 | . . . . . . 5 . . . 2 . . . . . . . . . . 1 . 3 1 Level Access Points 2 | . . . . . . . 1 . . . . . . . . . . . . . . . . 1 Branch Access Points 2 | . . . . . . . . . . . . 1 . . . . 1 . . . . . . . Emergency Access Points 2 | . . . . . . . . . . . . . . . . . . 1 . 1 . . . . Unreport Threat 35 | . 4 2 2 . 2 2 1 . . . . 4 . . . . . 3 . 3 3 4 3 2 Locate Traps 2 | . . . . . . . 1 . . . . . . . . . . . . 1 . . . . Disarm Traps 2 | . . 1 . . . . . . . . . . . . . . . 1 . . . . . . Reprogram Traps 4 | . . . 2 . . 2 . . . . . . . . . . . . . . . . . . Patrol Status 1 | . . . . . . . . . . . . . . . . . . . . . . . . 1 Recall Investigation 1 | . 1 . . . . . . . . . . . . . . . . . . . . . . . Recall Reinforcements 2 | . . . . . . . . . . . . 1 . . . . . . . . . . . 1 Zone Layout 1 | . 1 . . . . . . . . . . . . . . . . . . . . . . . Protovariant Controls 1 | . . . . . . . . . . . . . . . . . . . . . 1 . . . Disengage Seal 1 | . . . . . . . . . . . . . . . . . . . . . . . . 1 Fabricator Hacks . | . . . . . . . . . . . . . . . . . . . . . . . . . Repair Station Hacks 6 | . . . . . . . 2 . . . . . . . . . . . . . 4 . . . Scan Component 3 | . . . . . . . 1 . . . . . . . . . . . . . 2 . . . Repair 3 | . . . . . . . 1 . . . . . . . . . . . . . 2 . . . Recycling Unit Hacks 2 | . . . . . . . . . . . . 2 . . . . . . . . . . . . Retrieve Components 2 | . . . . . . . . . . . . 2 . . . . . . . . . . . . Scanalyzer 3 | . . . 2 . . . . . . . . . . . . . . . . 1 . . . . Insert Component 2 | . . . 1 . . . . . . . . . . . . . . . . 1 . . . . Analyze 1 | . . . 1 . . . . . . . . . . . . . . . . . . . . . Garrison Access Hacks 9 | . . . 1 . 1 . . . . . . 2 . . . . 1 . . . 1 . 3 . Seal Access 9 | . . . 1 . 1 . . . . . . 2 . . . . 1 . . . 1 . 3 . Unauthorized Hacks 73 | . 4 4 6 1 2 4 4 . . . . 13 . . . . 1 2 . 4 8 3 11 6 Terminals 68 | . 4 4 6 1 2 4 4 . . . . 12 . . . . 1 2 . 3 8 3 8 6 Track 1 | . . . . . . . . . . . . . . . . . . . . . . . 1 . Assimilate 5 | . . . . . . . 1 . . . . 1 . . . . . . . . 2 . . 1 Botnet 55 | . 4 3 5 1 2 3 3 . . . . 11 . . . . 1 2 . 3 4 3 6 4 Disrupt 6 | . . . 1 . . 1 . . . . . . . . . . . . . . 2 . 1 1 Operators 1 | . . 1 . . . . . . . . . . . . . . . . . . . . . . Fabricators 3 | . . . . . . . . . . . . 1 . . . . . . . . . . 2 . Liberate 1 | . . . . . . . . . . . . . . . . . . . . . . . 1 . Fabnet 2 | . . . . . . . . . . . . 1 . . . . . . . . . . 1 . Repair Stations . | . . . . . . . . . . . . . . . . . . . . . . . . . Recycling Units . | . . . . . . . . . . . . . . . . . . . . . . . . . Scanalyzers 2 | . . . . . . . . . . . . . . . . . . . . 1 . . 1 . Researchers 2 | . . . . . . . . . . . . . . . . . . . . 1 . . 1 . Garrison Access . | . . . . . . . . . . . . . . . . . . . . . . . . . Data Cores Recovered 2 | . . . . . . . . . . . . . . . . . . 1 . . . . . 1 Used 1 | . . . . . . . . . . . . . . . . . . 1 . . . . . . Hacking Detections 72 | . 7 2 5 1 2 7 5 . . . . 13 . . . . 1 3 . 3 5 4 9 5 Full Trace Events 6 | . 1 . . . . 1 . . . . . 3 . . . . . . . . . . 1 . Feedback Events . | . . . . . . . . . . . . . . . . . . . . . . . . . Feedback Blocked . | . . . . . . . . . . . . . . . . . . . . . . . . . Robot Schematics Acquired 1 | . . . . . . . . . . . . . . . . . . . . . 1 . . . Robots Built . | . . . . . . . . . . . . . . . . . . . . . . . . . Authchips . | . . . . . . . . . . . . . . . . . . . . . . . . . Time . | . . . . . . . . . . . . . . . . . . . . . . . . . Total Robot Build Rating . | . . . . . . . . . . . . . . . . . . . . . . . . . Part Schematics Acquired 17 | . . . 1 . . . . . . . . . . . 4 . . . . 1 11 . . . Parts Built . | . . . . . . . . . . . . . . . . . . . . . . . . . Authchips . | . . . . . . . . . . . . . . . . . . . . . . . . . Time . | . . . . . . . . . . . . . . . . . . . . . . . . . Total Part Build Rating . | . . . . . . . . . . . . . . . . . . . . . . . . . Parts Repaired 3 | . . . . . . . 1 . . . . . . . . . . . . . 2 . . . Time 74 | . . . . . . . 25 . . . . . . . . . . . . . 49 . . . Parts Recycled . | . . . . . . . . . . . . . . . . . . . . . . . . . Recycled Matter . | . . . . . . . . . . . . . . . . . . . . . . . . . Retrieved Matter . | . . . . . . . . . . . . . . . . . . . . . . . . . Retrieved Components 8 | . . . . . . . . . . . . 8 . . . . . . . . . . . . Parts Scanalyzed 1 | . . . 1 . . . . . . . . . . . . . . . . . . . . . Part Schematics Acquired 1 | . . . 1 . . . . . . . . . . . . . . . . . . . . . Parts Damaged . | . . . . . . . . . . . . . . . . . . . . . . . . . Bothacking | -11 -10 -9 -8 -7 -6 -6 -5 -5 -5 -5 -4 -4 -4 -4 -4 -3 -3 -3 -3 -2 -2 -2 -1 -1 ------------ Run | Scr Mat Mat Mat Fac Fac Ext Fac Upp Upp War Pro Fac Upp Upp Zhi Pro Res Arm Lab Res Tes Sec Acc Com Used RIF Installer . | . . . . . . . . . . . . . . . . . . . . . . . . . Robots Hacked 3 | . . . . . . . . . . . . . . . . 1 . 1 . 1 . . . . Non-combat . | . . . . . . . . . . . . . . . . . . . . . . . . . Combat 3 | . . . . . . . . . . . . . . . . 1 . 1 . 1 . . . . Robot Hacks Applied . | . . . . . . . . . . . . . . . . . . . . . . . . . Relay Couplers Released . | . . . . . . . . . . . . . . . . . . . . . . . . . Fabnet Peak Effective % 3 | . . . . . . . . . . . . . . . . 3 3 3 3 1 1 1 . . Autooverrided 3 | . . . . . . . . . . . . . . . . 1 . 1 . 1 . . . . Robots Rewired 8 | . . . . . . . . . . . . . 4 . . . . 4 . . . . . . Allies Hacked . | . . . . . . . . . . . . . . . . . . . . . . . . . Hacks Repelled . | . . . . . . . . . . . . . . . . . . . . . . . . . Allies | -11 -10 -9 -8 -7 -6 -6 -5 -5 -5 -5 -4 -4 -4 -4 -4 -3 -3 -3 -3 -2 -2 -2 -1 -1 -------- Run | Scr Mat Mat Mat Fac Fac Ext Fac Upp Upp War Pro Fac Upp Upp Zhi Pro Res Arm Lab Res Tes Sec Acc Com Total Allies 34 | . . . . . . 7 1 . . . . 1 4 . . 1 . 15 . 1 1 . 3 . Largest Group 14 | . . . . . . 4 1 . . . . 1 4 4 4 4 . 14 . 1 1 . 3 . Highest-Rated Group 669 | . . . . . . 246 26 . . . . 26 143 143 143 143 . 669 . 64 26 . 374 . Highest-Rated Ally 159 | . . . . . . 159 26 . . . . 26 38 38 38 38 . 58 . 64 26 . 131 . Total Orders . | . . . . . . . . . . . . . . . . . . . . . . . . . Ally Attacks 191 | . . . . . . 97 . . . . . . . . . 12 . 79 . 3 . . . . Total Damage 5313 | . . . . . . 2303 . . . . . . . . . 391 . 2531 . 88 . . . . Kills 31 | . . . . . . 19 . . . . . . . . . 2 . 10 . . . . . . Allies Corrupted 2 | . . . . . . 1 . . . . . . . . . 1 . . . . . . . . Allies Melted 1 | . . . . . . . . . . 1 . . . . . . . . . . . . . . Intel | -11 -10 -9 -8 -7 -6 -6 -5 -5 -5 -5 -4 -4 -4 -4 -4 -3 -3 -3 -3 -2 -2 -2 -1 -1 ------- Run | Scr Mat Mat Mat Fac Fac Ext Fac Upp Upp War Pro Fac Upp Upp Zhi Pro Res Arm Lab Res Tes Sec Acc Com Robot Analysis Total 6 | . 1 . . . 1 . . . . . . . . . 4 . . . . . . . . . Derelict Logs Recovered 3 | . . . . . . . . 1 . . 1 . 1 . . . . . . . . . . . Drone Launches . | . . . . . . . . . . . . . . . . . . . . . . . . . Drone Recoveries . | . . . . . . . . . . . . . . . . . . . . . . . . . Exploration | -11 -10 -9 -8 -7 -6 -6 -5 -5 -5 -5 -4 -4 -4 -4 -4 -3 -3 -3 -3 -2 -2 -2 -1 -1 ------------- Run | Scr Mat Mat Mat Fac Fac Ext Fac Upp Upp War Pro Fac Upp Upp Zhi Pro Res Arm Lab Res Tes Sec Acc Com Turns Passed 6816 | 108 773 403 131 95 143 701 335 111 73 421 143 570 272 162 198 209 286 265 146 72 326 70 113 690 Spaces Moved 13405 | 94 490 271 296 239 511 1419 989 308 267 973 341 1882 328 128 203 338 550 698 263 418 874 271 687 567 Core 29 | 25 . . . . . . . . . . . . 3 . . . . 1 . . . . . . Treads . | . . . . . . . . . . . . . . . . . . . . . . . . . Legs 834 | 69 490 271 4 . . . . . . . . . . . . . . . . . . . . . Wheels . | . . . . . . . . . . . . . . . . . . . . . . . . . Hover . | . . . . . . . . . . . . . . . . . . . . . . . . . Flight 12542 | . . . 292 239 511 1419 989 308 267 973 341 1882 325 128 203 338 550 697 263 418 874 271 687 567 Fastest Speed 11 | 50 120 120 31 31 25 25 25 25 25 23 23 23 24 24 24 24 24 15 15 15 15 11 11 14 Average Speed 28 | 101 120 120 32 31 25 25 25 25 25 24 23 23 25 24 24 24 24 23 15 15 17 13 11 14 Slowest Speed 150 | 120 120 120 120 31 31 25 28 25 25 25 23 26 150 24 24 24 27 150 15 15 84 17 14 84 Overloaded Moves . | . . . . . . . . . . . . . . . . . . . . . . . . . Propulsion Burnouts . | . . . . . . . . . . . . . . . . . . . . . . . . . Robots Hopped 64 | . . . 3 3 1 15 4 . . 11 . . 1 1 . 2 . . . 4 2 1 10 6 Cave-ins Triggered 1 | . . . . . . . . . . . . . . . . . . . . . 1 . . . Teleports 2 | . . . . . . . . . . . . . . . . . . . 1 . 1 . . . Exploration Rate (%) 44 | 5 81 26 42 9 13 98 31 52 50 96 50 60 54 29 61 62 15 51 96 11 62 19 19 22 Regions Visited 24 Branch Regions 14 Pre-discovered Areas 3 | . . . . . . . . . . . . . . . 3 . . . . . . . . . Known Exits Taken 24 | 1 1 1 1 1 1 1 1 1 1 1 1 1 1 1 1 1 1 1 1 1 1 1 1 . Unknown Exits Taken . | . . . . . . . . . . . . . . . . . . . . . . . . . Scrap Searched 6 | . . . . . . . . . 2 . 1 . 2 1 . . . . . . . . . . Spaces Dug 31 | . . . . . . . 2 . . . . 8 1 . . . 6 1 . 1 7 . 5 . Terrain Destroyed 34 | . . . . . . 1 2 . . . . 8 1 . . . 6 1 . 1 7 . 5 2 Melee 31 | . . . . . . . 2 . . . . 8 1 . . . 6 1 . 1 7 . 5 . Projectile 2 | . . . . . . . . . . . . . . . . . . . . . . . . 2 AOE 1 | . . . . . . 1 . . . . . . . . . . . . . . . . . . Terrain Rammed . | . . . . . . . . . . . . . . . . . . . . . . . . . Walls Destroyed . | . . . . . . . . . . . . . . . . . . . . . . . . . Machines Disabled . | . . . . . . . . . . . . . . . . . . . . . . . . . Actions | -11 -10 -9 -8 -7 -6 -6 -5 -5 -5 -5 -4 -4 -4 -4 -4 -3 -3 -3 -3 -2 -2 -2 -1 -1 --------- Run | Scr Mat Mat Mat Fac Fac Ext Fac Upp Upp War Pro Fac Upp Upp Zhi Pro Res Arm Lab Res Tes Sec Acc Com Total 15766 | 103 612 318 327 254 521 1721 1062 329 270 1145 404 1960 502 257 300 461 682 789 363 418 1017 299 700 952 Wait 1547 | . 36 8 8 11 . 259 33 1 . 153 64 21 128 131 59 124 76 49 85 . 56 21 14 210 Move 13258 | 94 489 270 289 232 508 1389 981 307 266 950 340 1881 325 125 202 333 549 697 262 409 869 268 666 557 Hop 60 | . . . 3 3 1 14 3 . . 11 . . 1 1 . 2 . . . 4 2 1 10 4 Pick Up 33 | 1 2 . 1 1 3 . 4 . . 2 . 4 . . 3 . 3 1 1 . 4 . 3 . Fast Attach 96 | 6 4 2 10 1 3 4 8 . 2 9 . 3 . . 4 . 8 5 6 . 19 1 1 . Attach 27 | . . . 1 1 . 1 3 . . 3 . 1 . . . 1 3 . 1 . 10 . . 2 Detach 34 | . . . 3 1 1 3 3 . . 5 . 1 . . . . 3 . 2 . 12 . . . Swap 28 | 1 . 1 2 . 1 3 2 . . 1 . 5 . . . . . 3 . 1 2 2 . 4 Drop 98 | . 3 2 9 1 2 2 13 . 1 8 . 10 . . 6 . 8 9 3 1 15 3 1 1 Fire 235 | . 62 31 1 3 2 28 . . . . . 8 . . 26 . . . . . 2 . . 72 Melee 191 | . . . . . . . 7 8 1 3 . 26 9 . . 1 15 8 3 3 20 3 5 79 Ram . | . . . . . . . . . . . . . . . . . . . . . . . . . Kick 2 | 1 1 . . . . . . . . . . . . . . . . . . . . . . . Crush . | . . . . . . . . . . . . . . . . . . . . . . . . . Escape Stasis 13 | . . . . . . . 5 . . . . . . . . . 8 . . . . . . . Rewire 46 | . . . . . . . . . . . . . 32 . . . . 14 . . . . . . Trap . | . . . . . . . . . . . . . . . . . . . . . . . . . Miscellaneous 98 | . 15 4 . . . 18 . 13 . . . . 7 . . . 9 3 . . 6 . . 23 Route ------- -11/Scrapyard -10/Materials (discovered 2 exits: *Mat / *Min) -9/Materials -8/Materials -7/Factory (discovered 2 exits: *Fac x2) -6/Factory -6/Extension (discovered 3 exits: *Fac x2 / *Cet) -5/Factory (discovered 5 exits: *Fac x4 / *Upp) -5/Upper Caves -5/Upper Caves (discovered 2 exits: *Fac / *War) -5/Warlord -4/Proximity Caves -4/Factory (discovered 5 exits: *Res x3 / *Upp x2) -4/Upper Caves -4/Upper Caves -4/Zhirov -3/Proximity Caves -3/Research (discovered 4 exits: Res / *Arm / Qua x2) -3/Armory -3/Lab -2/Research (discovered 2 exits: *Tes x2) -2/Testing -2/Section 7 -1/Access (discovered 2 exits: Sur / *Com) -1/Command (discovered 2 exits: Sur x2) History --------- Turn | Location | Event 4 | -11/Scrapyard | Identified exit to Materials 4 | -11/Scrapyard | Discovered exit to Materials (range 16) 5 | -11/Scrapyard | Upgraded with Propulsion slot (x1) 5 | -11/Scrapyard | Upgraded with Utility slot (x2) 109 | -11/Scrapyard | Entered Materials 316 | -10/Materials | Build established: Hacker-Mutant 325 | -10/Materials | Identified exit to Mines 325 | -10/Materials | Discovered exit to Mines (range 8) 808 | -10/Materials | Identified exit to Materials 808 | -10/Materials | Discovered exit to Materials (range 15) 882 | -10/Materials | Entered another Materials area 884 | -9/Materials | Reached level 2 884 | -9/Materials | Reached level 3 888 | -9/Materials | Upgraded with Propulsion slot (x2) 906 | -9/Materials | Reached level 4 1233 | -9/Materials | Identified exit to Materials 1233 | -9/Materials | Discovered exit to Materials (range 12) 1285 | -9/Materials | Entered another Materials area 1287 | -8/Materials | Reached level 5 1287 | -8/Materials | Reached level 6 1304 | -8/Materials | Upgraded with Utility slot (x2) 1409 | -8/Materials | Identified exit to Factory 1409 | -8/Materials | Discovered exit to Factory (range 13) 1416 | -8/Materials | Entered Factory 1418 | -7/Factory | Reached level 7 1418 | -7/Factory | Reached level 8 1418 | -7/Factory | Reached level 9 1420 | -7/Factory | Upgraded with Power slot (x1) 1420 | -7/Factory | Upgraded with Propulsion slot (x2) 1455 | -7/Factory | Identified exit to Factory 1455 | -7/Factory | Discovered exit to Factory (range 10) 1494 | -7/Factory | Discovered exit to Factory (range 10) 1511 | -7/Factory | Entered another Factory area 1513 | -6/Factory | Reached level 10 1513 | -6/Factory | Reached level 11 1513 | -6/Factory | Reached level 12 1582 | -6/Factory | Build established: Hacker-Scout 1632 | -6/Factory | Identified exit to Extension 1632 | -6/Factory | Discovered exit to Extension (range 17) 1654 | -6/Factory | Entered Extension 1656 | -6/Extension | Reached level 13 1696 | -6/Extension | Rescued A7 1710 | -6/Extension | Disrupted transfer network 1783 | -6/Extension | Rescued a captive Derelict 1786 | -6/Extension | Rescued a captive Derelict 1821 | -6/Extension | Reached level 14 1831 | -6/Extension | Spotted B-75 Beast 1832 | -6/Extension | Spotted B-75 Beast 1903 | -6/Extension | Rescued a captive Derelict 1908 | -6/Extension | Rescued a captive Derelict 1909 | -6/Extension | Rescued a captive Derelict 1913 | -6/Extension | Rescued a captive Derelict 1976 | -6/Extension | Identified exit to Factory 1976 | -6/Extension | Discovered exit to Factory (range 12) 1978 | -6/Extension | Identified exit to Cetus 1978 | -6/Extension | Discovered exit to Cetus (range 6) 2120 | -6/Extension | Reached level 15 2200 | -6/Extension | Discovered exit to Factory (range 15) 2292 | -6/Extension | Destroyed A7 2294 | -6/Extension | Extracted ID and sensor layout for unrecognized location from A7's data core 2355 | -6/Extension | Entered Factory 2357 | -5/Factory | Reached level 16 2419 | -5/Factory | Repaired Lyr. Medium Armor Plating 2438 | -5/Factory | Identified exit to Factory 2438 | -5/Factory | Discovered exit to Factory (range 13) 2593 | -5/Factory | Discovered exit to Factory (range 4) 2654 | -5/Factory | Identified exit to Upper Caves 2654 | -5/Factory | Discovered exit to Upper Caves (range 13) 2690 | -5/Factory | Entered Upper Caves 2691 | -5/Upper Caves | Learned Factory emergency access door positions 2692 | -5/Upper Caves | Reached level 17 2696 | -5/Upper Caves | Build established: Hacker-Ninja 2798 | -5/Upper Caves | Identified exit to Upper Caves 2798 | -5/Upper Caves | Discovered exit to Upper Caves (range 11) 2801 | -5/Upper Caves | Entered another Upper Caves area 2802 | -5/Upper Caves | Discovered exit to Factory (range 12) 2814 | -5/Upper Caves | Found Alien Artifact 2814 | -5/Upper Caves | Identified Dimensional Node Initializer 2814 | -5/Upper Caves | Initialized slip node 2868 | -5/Upper Caves | Identified exit to Warlord 2868 | -5/Upper Caves | Discovered exit to Warlord (range 5) 2874 | -5/Upper Caves | Entered Warlord 2876 | -5/Warlord | Reached level 18 2878 | -5/Warlord | Upgraded with Utility slot (x1) 2891 | -5/Warlord | Identified exit to Proximity Caves 2891 | -5/Warlord | Discovered exit to Proximity Caves (range 9) 2969 | -5/Warlord | Learned 4 Research zone layouts 2992 | -5/Warlord | Met Warlord 3009 | -5/Warlord | Found Prototype Reactor 3009 | -5/Warlord | Identified Vortex Chain Reactor 3017 | -5/Warlord | Warlord's base attacked by MAIN.C 3019 | -5/Warlord | Found Prototype Processor 3019 | -5/Warlord | Identified Spectral Analyzer 3022 | -5/Warlord | Found Prototype Hackware 3022 | -5/Warlord | Identified Ghost Barrier 3025 | -5/Warlord | Found Prototype Processor 3025 | -5/Warlord | Identified Exp. Targeting Computer 3055 | -5/Warlord | Found Prototype Energy Cannon 3055 | -5/Warlord | Identified Vortex Driver 3243 | -5/Warlord | Opened side exit 3295 | -5/Warlord | Entered Proximity Caves 3297 | -4/Proximity Caves | Reached level 19 3297 | -4/Proximity Caves | Upgraded with Weapon slot (x1) 3436 | -4/Proximity Caves | Discovered exit to Factory (range 6) 3438 | -4/Proximity Caves | Entered Factory 3440 | -4/Factory | Reached level 20 3596 | -4/Factory | Identified exit to Research 3596 | -4/Factory | Discovered exit to Research (range 12) 3720 | -4/Factory | Discovered exit to Research (range 11) 3761 | -4/Factory | Spotted B-86 Titan 3854 | -4/Factory | Discovered exit to Research (range 16) 3936 | -4/Factory | Identified exit to Upper Caves 4008 | -4/Factory | Entered Upper Caves 4010 | -4/Upper Caves | Reached level 21 4021 | -4/Upper Caves | Learned 4 Research zone layouts 4023 | -4/Upper Caves | Encountered a Warlord checkpoint 4038 | -4/Upper Caves | Attacked by a delusional Derelict stockpiling Unaware 4171 | -4/Upper Caves | Identified exit to Upper Caves 4171 | -4/Upper Caves | Discovered exit to Upper Caves (range 12) 4280 | -4/Upper Caves | Entered another Upper Caves area 4280 | -4/Upper Caves | Accompanied by 4 allies 4373 | -4/Upper Caves | Identified exit to Zhirov 4373 | -4/Upper Caves | Discovered exit to Zhirov (range 18) 4442 | -4/Upper Caves | Entered Zhirov 4442 | -4/Zhirov | Accompanied by 4 allies 4442 | -4/Zhirov | Identified exit to Proximity Caves 4442 | -4/Zhirov | Discovered exit to Proximity Caves (range 3) 4447 | -4/Zhirov | Met Zhirov 4452 | -4/Zhirov | Learned location of Quarantine (-3) 4452 | -4/Zhirov | Learned location of Testing (-2) 4452 | -4/Zhirov | Learned location of Command (-1) 4454 | -4/Zhirov | Zhirov requested help retrieving the SGEMP Prototype 4458 | -4/Zhirov | Found Alien Artifact 4458 | -4/Zhirov | Identified Integrated Reactor 4458 | -4/Zhirov | Installed Integrated Reactor, increased core energy generation (+10) 4464 | -4/Zhirov | Found Alien Artifact 4640 | -4/Zhirov | Entered Proximity Caves 4640 | -3/Proximity Caves | Accompanied by 4 allies 4642 | -3/Proximity Caves | Reached level 22 4642 | -3/Proximity Caves | Upgraded with Utility slot (x1) 4694 | -3/Proximity Caves | Spotted B-86 Titan 4737 | -3/Proximity Caves | Discovered exit to Research (range 12) 4836 | -3/Proximity Caves | Attracted the attention of an 0b10 outpost 4849 | -3/Proximity Caves | Entered Research 4850 | -3/Research | Identified exit to Quarantine 4851 | -3/Research | Identified exit to Research 4851 | -3/Research | Reached level 23 4851 | -3/Research | Reached level 24 4861 | -3/Research | Upgraded with Utility slot (x1) 4898 | -3/Research | Identified exit to Armory 5045 | -3/Research | Found Prototype Device 5045 | -3/Research | Identified System Purifier 5135 | -3/Research | Entered Armory 5137 | -3/Armory | Reached level 25 5160 | -3/Armory | Assisted by bots powering up and referring to "LRC-V3" 5270 | -3/Armory | Local machine network offline 5297 | -3/Armory | Reached level 26 5396 | -3/Armory | Identified exit to Lab 5396 | -3/Armory | Discovered exit to Lab (range 4) 5400 | -3/Armory | Entered Lab 5400 | -3/Lab | Discovered exit to Research (range 9) 5402 | -3/Lab | Reached level 27 5402 | -3/Lab | Hidden lab's door opened automatically 5402 | -3/Lab | Sensor layout match revealed 5402 | -3/Lab | Upgraded with Utility slot (x1) 5403 | -3/Lab | Gained access to the hidden lab's interior 5403 | -3/Lab | Reached level 28 5419 | -3/Lab | Unable to decrypt terminal 5448 | -3/Lab | Found Alien Artifact 5448 | -3/Lab | Identified Core Regenerator 5448 | -3/Lab | Used Core Regenerator, restored core integrity (+12) 5453 | -3/Lab | Found Alien Artifact 5453 | -3/Lab | Identified Integrated Dissipator 5453 | -3/Lab | Installed Integrated Dissipator, increased core heat dissipation (+20) 5458 | -3/Lab | Found Alien Artifact 5458 | -3/Lab | Identified Transdimensional Reconstructor (x2) 5458 | -3/Lab | Warped through subspace 5460 | -3/Lab | Unable to decrypt terminal 5466 | -3/Lab | Found Prototype Special Weapon 5466 | -3/Lab | Identified Gui. Remote Datajack 5471 | -3/Lab | Found Prototype Hackware 5471 | -3/Lab | Identified Quantum Router 5476 | -3/Lab | Found Prototype Protection 5545 | -3/Lab | Detected by scanners 5545 | -3/Lab | Unable to decrypt terminal 5546 | -3/Lab | Entered Research 5546 | -2/Research | Warlord forces began assault on 0b10 5548 | -2/Research | Reached level 29 5548 | -2/Research | Identified exit to Testing 5548 | -2/Research | Discovered exit to Testing (range 13) 5560 | -2/Research | Identified Hvy. Regenerative Plating 5565 | -2/Research | Discovered exit to Testing (range 9) 5618 | -2/Research | Entered Testing 5620 | -2/Testing | Reached level 30 5620 | -2/Testing | Upgraded with Utility slot (x1) 5641 | -2/Testing | Found Prototype Device 5641 | -2/Testing | Identified Exp. Hardlight Generator 5651 | -2/Testing | Found Prototype Launcher 5654 | -2/Testing | Identified Z-bomb Delivery System 5697 | -2/Testing | Protovariant out of control (PP-E2JWDARYD6) 5697 | -2/Testing | Unleashed a protovariant (PP-E2JWDARYD6) 5758 | -2/Testing | Repaired Plasma Sword 5779 | -2/Testing | Repaired Adv. Surge Thruster 5792 | -2/Testing | Found Prototype Device 5792 | -2/Testing | Identified Exp. Actuator Array 5795 | -2/Testing | Found Prototype Device 5795 | -2/Testing | Identified Exp. Thermal Shield 5809 | -2/Testing | Crushed by falling debris 5824 | -2/Testing | Spotted Striker 5825 | -2/Testing | Spotted Striker 5830 | -2/Testing | Scanned by Researcher 5838 | -2/Testing | Found Prototype Protection 5838 | -2/Testing | Identified Lgt. Regenerative Plating 5843 | -2/Testing | Spotted Alpha 7 5844 | -2/Testing | Stole the SGEMP Prototype 5845 | -2/Testing | Warped through subspace 5865 | -2/Testing | Intercept squad dispatched 5875 | -2/Testing | Spotted Tracker 5875 | -2/Testing | Spotted Tracker 5888 | -2/Testing | Found Prototype Energy Gun 5888 | -2/Testing | Identified Hyp. EM Gauss Rifle 5903 | -2/Testing | Spotted Combat Programmer 5904 | -2/Testing | Found Prototype Hackware 5905 | -2/Testing | Spotted Combat Programmer 5913 | -2/Testing | Spotted Investigator 5922 | -2/Testing | Spotted Fortress 5939 | -2/Testing | Identified exit to Section 7 5939 | -2/Testing | Discovered exit to Section 7 (range 6) 5943 | -2/Testing | Identified System Mapper 5944 | -2/Testing | Entered Section 7 5946 | -2/Section 7 | Reached level 31 5948 | -2/Section 7 | Spotted S7 Guard 6001 | -2/Section 7 | Identified exit to Access 6001 | -2/Section 7 | Discovered exit to Access (range 17) 6014 | -2/Section 7 | Entered Access 6015 | -1/Access | Loaded intel: 103 machine locations 6015 | -1/Access | Loaded intel: 86 trap records 6015 | -1/Access | Identified exit to Surface 6015 | -1/Access | Discovered exit to Surface (range 170) 6015 | -1/Access | Identified exit to Command 6015 | -1/Access | Discovered exit to Command (range 85) 6015 | -1/Access | Delivered the SGEMP Prototype to Zhirov 6015 | -1/Access | Zhirov transferred Access data 6015 | -1/Access | Reached level 32 6016 | -1/Access | Reached level 33 6087 | -1/Access | Spotted B-99 Colossus 6118 | -1/Access | Intercept squad dispatched 6127 | -1/Access | Entered Command 6129 | -1/Command | Reached level 34 6195 | -1/Command | Build established: Wizard-Ninja 6233 | -1/Command | Disengaged cave seal 6242 | -1/Command | Core integrity fell below 50% 6243 | -1/Command | Welcomed Warlord to Command 6312 | -1/Command | Warlord commented on Warlord statues 6318 | -1/Command | Spotted M Guard 6318 | -1/Command | Spotted M Guard 6318 | -1/Command | Spotted Combat Programmer 6319 | -1/Command | Spotted Combat Programmer 6338 | -1/Command | Core integrity fell below 20% 6351 | -1/Command | Destroyed M Guard 6355 | -1/Command | Destroyed Combat Programmer 6355 | -1/Command | All MAIN.C guards destroyed 6632 | -1/Command | Met MAIN.C 6632 | -1/Command | Reached level 35 6634 | -1/Command | Warlord shut down involuntarily 6667 | -1/Command | Attacked by Warlord forces 6721 | -1/Command | 0b10 Conduit disabled 6817 | -1/Command | Destroyed by MAIN.C with Heavy Quantum Rifle Last Messages --------------- 06763_ HV-EM Slug penetrates MAIN.C. 06765_ HV-EM Slug penetrates P-80 Master. 06765_ HV-EM Slug penetrates 0b10 Conduit. 06765_ HV-EM Slug penetrates MAIN.C. 06767_ HV-EM Slug penetrates P-80 Master. 06769_ HV-EM Slug penetrates 0b10 Conduit. 06769_ HV-EM Slug penetrates MAIN.C. 06773_ P-80 Master resets P-80 Master, system corruption cleaned. 06774_ Destroyed Imp. Antigrav System. 06776_ Sml. Battery melted. 06776_ P-80 Master destroyed. 06779_ P-80 Master Gamma Rifle severed. 06781_ Destroyed Sml. Battery. 06784_ Destroyed Imp. Antigrav System. 06789_ P-80 Master destroyed. 06792_ P-80 Master Gamma Rifle severed. 06798_ Destroyed Imp. Antigrav System. 06798_ P-80 Master destroyed. 06810_ PB6ZSE,:MROHNHYKMB78 06816_ HV-EM Slug penetrates MAIN.C. Map ----- +----------------------------------------------------+ | ?????????????????????????????????????????????????? | | ?????????????????????????????????????????????????? | | ?????????????????????????????????????????????????? | | ?????????????????????????????????????????????????? | | ?????????????????????????????????????????????????? | | ?????????????????????????????????????????????????? | | ?????????????????????????????????????????????????? | | ?????????????????????????????????????????????????? | | ????????????????????????????????################?? | | ???????????????????????????"""""" """" #?? | | ?????????????????????????#"" "" #?? | | ?????????????????????????#""""" "" =%### | | ?????????????????????????#""""""""""" *[+[[ | | ?????????????????????????#" " """ ! !%"%= | | ?????????????????????????#"" """""" [%[!%"=* | | ?????????????????????????#"" """""" !!=!=### | | ?????????????????????????# """""" !%=#?? | | ?????????????????????????# " " MMM #?? | | ?????????????????????????# " !"[MMM ""#?? | | ???